[Event "*** Titled Tuesday Blitz"]
[Site "Chess.com"]
[Date "2020.05.05"]
[Round "2"]
[White "Tayson_7"]
[Black "PetrolulSah"]
[Result "1-0"]
[WhiteElo "2616"]
[BlackElo "2266"]
[TimeControl "180+1"]
[EndTime "10:17:49 PDT"]
[Termination "Tayson_7 won on time"]

1. e4 {[%clk 0:03:00.9]} 1... e5 {[%clk 0:02:59.3]} 2. Nf3 {[%clk 0:03:00.5]}
2... Nf6 {[%clk 0:02:58.8]} 3. Nxe5 {[%clk 0:02:59]} 3... d6 {[%clk 0:02:58.6]}
4. Nc4 {[%clk 0:02:59.5]} 4... Nxe4 {[%clk 0:02:57.7]} 5. Qe2 {[%clk 0:03:00]}
5... Qe7 {[%clk 0:02:56.6]} 6. Ne3 {[%clk 0:02:59.3]} 6... c6 {[%clk 0:02:55.2]}
7. g3 {[%clk 0:02:59.5]} 7... g6 {[%clk 0:02:48.3]} 8. Bg2 {[%clk 0:02:59.1]}
8... Bg7 {[%clk 0:02:46.6]} 9. O-O {[%clk 0:02:48.8]} 9... O-O {[%clk
0:02:44.8]} 10. Nc4 {[%clk 0:02:46.2]} 10... d5 {[%clk 0:02:41.5]} 11. d3 {[%clk
0:02:45.7]} 11... dxc4 {[%clk 0:02:27.2]} 12. dxe4 {[%clk 0:02:45.8]} 12... Be6
{[%clk 0:02:23]} 13. f4 {[%clk 0:02:41.6]} 13... f5 {[%clk 0:02:10.8]} 14. e5
{[%clk 0:02:29.1]} 14... Nd7 {[%clk 0:02:07.8]} 15. Be3 {[%clk 0:02:28.5]} 15...
Nb6 {[%clk 0:02:03.1]} 16. Qf2 {[%clk 0:02:26]} 16... Rfd8 {[%clk 0:01:59.8]}
17. Bc5 {[%clk 0:02:24.6]} 17... Qf7 {[%clk 0:01:56.1]} 18. Nc3 {[%clk
0:02:21.3]} 18... Nd5 {[%clk 0:01:53.8]} 19. Ne2 {[%clk 0:02:21.1]} 19... Bf8
{[%clk 0:01:51.5]} 20. Bxf8 {[%clk 0:02:20.8]} 20... Kxf8 {[%clk 0:01:47]} 21.
Rad1 {[%clk 0:02:19]} 21... Nb4 {[%clk 0:01:40.2]} 22. Nd4 {[%clk 0:02:14.8]}
22... Bd5 {[%clk 0:01:27.5]} 23. a3 {[%clk 0:02:11.8]} 23... Bxg2 {[%clk
0:01:24.7]} 24. Qxg2 {[%clk 0:02:11.8]} 24... Nd5 {[%clk 0:01:19.9]} 25. Rfe1
{[%clk 0:02:11.6]} 25... Qe7 {[%clk 0:01:13.6]} 26. Kh1 {[%clk 0:02:09.6]} 26...
c3 {[%clk 0:01:06.1]} 27. b3 {[%clk 0:02:04.5]} 27... a6 {[%clk 0:01:02.6]} 28.
Qf3 {[%clk 0:01:58.8]} 28... c5 {[%clk 0:01:01.5]} 29. Nxf5 {[%clk 0:01:56.1]}
29... gxf5 {[%clk 0:00:58.3]} 30. Rxd5 {[%clk 0:01:55.9]} 30... Rxd5 {[%clk
0:00:57]} 31. Qxd5 {[%clk 0:01:56.5]} 31... Rd8 {[%clk 0:00:57.4]} 32. Qf3
{[%clk 0:01:57.1]} 32... Qd7 {[%clk 0:00:39.6]} 33. e6 {[%clk 0:01:56.4]} 33...
Qe7 {[%clk 0:00:34.8]} 34. Qxc3 {[%clk 0:01:55.6]} 34... Kg8 {[%clk 0:00:34.4]}
35. Qe5 {[%clk 0:01:55.1]} 35... Rd2 {[%clk 0:00:33.3]} 36. Qxf5 {[%clk
0:01:54.1]} 36... b5 {[%clk 0:00:33]} 37. h4 {[%clk 0:01:33.5]} 37... Qb7+
{[%clk 0:00:30.4]} 38. Qe4 {[%clk 0:01:33.4]} 38... Qxe4+ {[%clk 0:00:29.7]} 39.
Rxe4 {[%clk 0:01:34.3]} 39... Kf8 {[%clk 0:00:29.7]} 40. f5 {[%clk 0:01:33.8]}
40... Rxc2 {[%clk 0:00:27.3]} 41. g4 {[%clk 0:01:28]} 41... Rf2 {[%clk 0:00:27]}
42. Kg1 {[%clk 0:01:28]} 42... Rf3 {[%clk 0:00:22.8]} 43. Kg2 {[%clk 0:01:28]}
43... Rd3 {[%clk 0:00:19.9]} 44. f6 {[%clk 0:01:27.6]} 44... Rd2+ {[%clk
0:00:12.8]} 45. Kg3 {[%clk 0:01:27.7]} 45... Rd3+ {[%clk 0:00:12.5]} 46. Kf4
{[%clk 0:01:28.3]} 46... Ke8 {[%clk 0:00:11.9]} 47. e7 {[%clk 0:01:24.3]} 1-0

[Event "*** Titled Tuesday Blitz"]
[Site "Chess.com"]
[Date "2020.05.05"]
[Round "2"]
[White "nickmatta"]
[Black "ecwinslow"]
[Result "1-0"]
[WhiteElo "2462"]
[BlackElo "2233"]
[TimeControl "180+1"]
[EndTime "10:17:49 PDT"]
[Termination "nickmatta won by resignation"]

1. d4 {[%clk 0:03:00.9]} 1... Nf6 {[%clk 0:02:59]} 2. c4 {[%clk 0:03:01]} 2...
g6 {[%clk 0:02:59.1]} 3. Nc3 {[%clk 0:03:01.5]} 3... Bg7 {[%clk 0:02:59.1]} 4.
e4 {[%clk 0:03:01.7]} 4... d6 {[%clk 0:02:59.7]} 5. Bd3 {[%clk 0:03:01.7]} 5...
O-O {[%clk 0:02:58.7]} 6. Nge2 {[%clk 0:03:02]} 6... Nc6 {[%clk 0:02:57.5]} 7.
O-O {[%clk 0:03:01.7]} 7... Nd7 {[%clk 0:02:53.8]} 8. Be3 {[%clk 0:02:57.5]}
8... e5 {[%clk 0:02:52.5]} 9. d5 {[%clk 0:02:55.5]} 9... Nd4 {[%clk 0:02:51.8]}
10. Nb5 {[%clk 0:02:46.6]} 10... Nxe2+ {[%clk 0:02:33.6]} 11. Qxe2 {[%clk
0:02:45.8]} 11... a6 {[%clk 0:02:31]} 12. Nc3 {[%clk 0:02:23.9]} 12... f5 {[%clk
0:02:22]} 13. exf5 {[%clk 0:02:23.8]} 13... gxf5 {[%clk 0:02:21]} 14. f3 {[%clk
0:02:24.2]} 14... c5 {[%clk 0:02:18.6]} 15. dxc6 {[%clk 0:01:44.7]} 15... bxc6
{[%clk 0:02:17.1]} 16. Rad1 {[%clk 0:01:45.4]} 16... Qe7 {[%clk 0:02:12.5]} 17.
Qc2 {[%clk 0:01:43.9]} 17... Qe6 {[%clk 0:01:54.7]} 18. Be2 {[%clk 0:01:30.4]}
18... Nf6 {[%clk 0:01:49.1]} 19. Qd2 {[%clk 0:01:15.6]} 19... Rd8 {[%clk
0:01:42.8]} 20. Bb6 {[%clk 0:01:12.7]} 20... Rd7 {[%clk 0:01:39.9]} 21. Na4
{[%clk 0:01:13.1]} 21... Rb8 {[%clk 0:01:18.7]} 22. b4 {[%clk 0:01:05.1]} 22...
f4 {[%clk 0:01:12.5]} 23. Bf2 {[%clk 0:00:58.6]} 23... d5 {[%clk 0:01:07.6]} 24.
Nc5 {[%clk 0:00:57.1]} 24... Qe7 {[%clk 0:01:05.1]} 25. Nxd7 {[%clk 0:00:57.2]}
25... Bxd7 {[%clk 0:01:04.3]} 26. Bc5 {[%clk 0:00:52]} 26... Qe8 {[%clk
0:00:59.9]} 27. cxd5 {[%clk 0:00:52.3]} 27... cxd5 {[%clk 0:00:58.6]} 28. Bxa6
{[%clk 0:00:52.9]} 28... e4 {[%clk 0:00:54.2]} 29. Qxf4 {[%clk 0:00:47.1]} 29...
Ra8 {[%clk 0:00:49.9]} 30. Bb7 {[%clk 0:00:43.2]} 30... Rxa2 {[%clk 0:00:46.5]}
31. fxe4 {[%clk 0:00:41.4]} 31... dxe4 {[%clk 0:00:39.7]} 32. Rd6 {[%clk
0:00:23.3]} 32... e3 {[%clk 0:00:27.4]} 33. Qxe3 {[%clk 0:00:23.2]} 33... Qg6
{[%clk 0:00:20]} 34. Rdxf6 {[%clk 0:00:20.4]} 1-0

[Event "*** Titled Tuesday Blitz"]
[Site "Chess.com"]
[Date "2020.05.05"]
[Round "2"]
[White "BabyBoss31"]
[Black "MrRooke6"]
[Result "1-0"]
[WhiteElo "2282"]
[BlackElo "2471"]
[TimeControl "180+1"]
[EndTime "10:17:50 PDT"]
[Termination "BabyBoss31 won by resignation"]

1. d4 {[%clk 0:03:00.9]} 1... Nf6 {[%clk 0:02:59.2]} 2. c4 {[%clk 0:03:01.3]}
2... Nc6 {[%clk 0:02:59.2]} 3. Nf3 {[%clk 0:02:54.3]} 3... e6 {[%clk 0:02:59]}
4. a3 {[%clk 0:02:47.4]} 4... d6 {[%clk 0:02:58.4]} 5. Nc3 {[%clk 0:02:34.1]}
5... g6 {[%clk 0:02:58.4]} 6. e4 {[%clk 0:02:30.6]} 6... Bg7 {[%clk 0:02:58.1]}
7. h3 {[%clk 0:02:23.1]} 7... O-O {[%clk 0:02:57.4]} 8. Bg5 {[%clk 0:02:18.3]}
8... h6 {[%clk 0:02:56.4]} 9. Be3 {[%clk 0:02:11.7]} 9... Re8 {[%clk 0:02:55.7]}
10. Bd3 {[%clk 0:02:07.4]} 10... e5 {[%clk 0:02:55.2]} 11. d5 {[%clk 0:02:04.5]}
11... Nd4 {[%clk 0:02:39.1]} 12. Nxd4 {[%clk 0:01:46.1]} 12... exd4 {[%clk
0:02:40]} 13. Bxd4 {[%clk 0:01:46.5]} 13... Nxe4 {[%clk 0:02:39.4]} 14. Bxe4
{[%clk 0:01:46.7]} 14... f5 {[%clk 0:02:39.2]} 15. Bxg7 {[%clk 0:01:39]} 15...
Kxg7 {[%clk 0:02:38.8]} 16. Qd4+ {[%clk 0:01:38.9]} 16... Qf6 {[%clk 0:02:38.3]}
17. O-O-O {[%clk 0:01:33.6]} 17... fxe4 {[%clk 0:02:32.6]} 18. Nxe4 {[%clk
0:01:28.3]} 18... Qxd4 {[%clk 0:02:31.4]} 19. Rxd4 {[%clk 0:01:29.2]} 19... Bf5
{[%clk 0:02:30.6]} 20. Ng3 {[%clk 0:01:28.3]} 20... Bd7 {[%clk 0:02:29.8]} 21.
Kd2 {[%clk 0:01:11]} 21... Rf8 {[%clk 0:02:22.6]} 22. f3 {[%clk 0:01:09.2]}
22... Rae8 {[%clk 0:02:22]} 23. Re1 {[%clk 0:01:06.8]} 23... Rxe1 {[%clk
0:02:21]} 24. Kxe1 {[%clk 0:01:07.7]} 24... Bf5 {[%clk 0:02:20.4]} 25. Nxf5+
{[%clk 0:01:02.8]} 25... gxf5 {[%clk 0:02:20.7]} 26. Kf2 {[%clk 0:01:00.7]}
26... Re8 {[%clk 0:02:16.6]} 27. b4 {[%clk 0:00:59.2]} 27... Kf6 {[%clk
0:02:14.8]} 28. g4 {[%clk 0:00:53]} 28... Kg5 {[%clk 0:02:06.4]} 29. gxf5 {[%clk
0:00:38.3]} 29... Kxf5 {[%clk 0:02:05.8]} 30. Rh4 {[%clk 0:00:38.1]} 30... Kg5
{[%clk 0:02:05.6]} 31. Rg4+ {[%clk 0:00:32.9]} 31... Kf6 {[%clk 0:02:05.6]} 32.
Rf4+ {[%clk 0:00:31.2]} 32... Kg6 {[%clk 0:02:03.9]} 33. Re4 {[%clk 0:00:30.6]}
33... Rc8 {[%clk 0:01:54.3]} 34. Re7 {[%clk 0:00:30.6]} 34... Kf6 {[%clk
0:01:54.4]} 35. Rh7 {[%clk 0:00:30.2]} 35... Ke5 {[%clk 0:01:51.3]} 36. Ke3
{[%clk 0:00:27.1]} 36... c6 {[%clk 0:01:49.9]} 37. Rxh6 {[%clk 0:00:19.8]} 37...
cxd5 {[%clk 0:01:50.1]} 38. Rh5+ {[%clk 0:00:20]} 38... Kf6 {[%clk 0:01:50.3]}
39. Rxd5 {[%clk 0:00:18.6]} 39... Rxc4 {[%clk 0:01:50.5]} 40. Rxd6+ {[%clk
0:00:19.2]} 40... Ke5 {[%clk 0:01:49.7]} 41. Rd7 {[%clk 0:00:19.2]} 41... Rc3+
{[%clk 0:01:49.8]} 42. Kf2 {[%clk 0:00:19.6]} 42... Rxa3 {[%clk 0:01:48.9]} 43.
Rxb7 {[%clk 0:00:20]} 43... Kf4 {[%clk 0:01:49]} 44. Rf7+ {[%clk 0:00:20.1]}
44... Ke5 {[%clk 0:01:47]} 45. Kg3 {[%clk 0:00:20.6]} 45... a6 {[%clk
0:01:45.8]} 46. Ra7 {[%clk 0:00:20.5]} 46... Kd4 {[%clk 0:01:45.1]} 47. Rb7
{[%clk 0:00:20.2]} 47... Kc4 {[%clk 0:01:45.2]} 48. Rb6 {[%clk 0:00:20.5]} 48...
Ra4 {[%clk 0:01:42.3]} 49. h4 {[%clk 0:00:20.7]} 49... Ra1 {[%clk 0:01:41.3]}
50. h5 {[%clk 0:00:20.7]} 50... Rh1 {[%clk 0:01:39.4]} 51. h6 {[%clk 0:00:20.1]}
51... Rh5 {[%clk 0:01:38.8]} 52. Rxa6 {[%clk 0:00:20.2]} 52... Kxb4 {[%clk
0:01:38.2]} 53. Rg6 {[%clk 0:00:20.5]} 53... Kc5 {[%clk 0:01:36.6]} 54. Kg4
{[%clk 0:00:19.3]} 54... Rh1 {[%clk 0:01:36.7]} 55. Rg5+ {[%clk 0:00:18.4]}
55... Kd6 {[%clk 0:01:37.3]} 56. Rh5 {[%clk 0:00:19.3]} 56... Rg1+ {[%clk
0:01:37.3]} 57. Kf5 {[%clk 0:00:19.6]} 57... Rg8 {[%clk 0:01:37.7]} 58. Kf6
{[%clk 0:00:19.9]} 58... Rf8+ {[%clk 0:01:37]} 59. Kg7 {[%clk 0:00:20.1]} 59...
Rxf3 {[%clk 0:01:37.2]} 60. h7 {[%clk 0:00:20.6]} 60... Rg3+ {[%clk 0:01:37.7]}
61. Kf6 {[%clk 0:00:20.9]} 61... Rf3+ {[%clk 0:01:37.6]} 62. Kg5 {[%clk
0:00:21.4]} 62... Rg3+ {[%clk 0:01:36.7]} 63. Kf4 {[%clk 0:00:21.6]} 63... Rf3+
{[%clk 0:01:35.8]} 64. Kxf3 {[%clk 0:00:21.5]} 1-0

[Event "*** Titled Tuesday Blitz"]
[Site "Chess.com"]
[Date "2020.05.05"]
[Round "2"]
[White "JozefKneht"]
[Black "rogapa"]
[Result "0-1"]
[WhiteElo "2480"]
[BlackElo "2707"]
[TimeControl "180+1"]
[EndTime "10:17:51 PDT"]
[Termination "rogapa won by resignation"]

1. e4 {[%clk 0:03:00.9]} 1... c5 {[%clk 0:02:59.4]} 2. Nf3 {[%clk 0:03:00.8]}
2... d6 {[%clk 0:02:59.5]} 3. d4 {[%clk 0:03:01.3]} 3... cxd4 {[%clk 0:03:00.4]}
4. Nxd4 {[%clk 0:03:01.6]} 4... Nf6 {[%clk 0:03:01.3]} 5. Nc3 {[%clk 0:03:02]}
5... a6 {[%clk 0:03:02.2]} 6. Bg5 {[%clk 0:03:01.9]} 6... Nbd7 {[%clk
0:03:02.1]} 7. f4 {[%clk 0:03:02]} 7... Qc7 {[%clk 0:03:01.2]} 8. Qf3 {[%clk
0:03:02.4]} 8... b5 {[%clk 0:03:01.5]} 9. Bxf6 {[%clk 0:02:57]} 9... Nxf6 {[%clk
0:02:59.7]} 10. e5 {[%clk 0:02:57.1]} 10... Bb7 {[%clk 0:02:59.6]} 11. Qg3
{[%clk 0:02:57.6]} 11... dxe5 {[%clk 0:02:55.7]} 12. fxe5 {[%clk 0:02:55.6]}
12... Nd7 {[%clk 0:02:53.2]} 13. e6 {[%clk 0:02:32.9]} 13... Qxg3+ {[%clk
0:02:54.1]} 14. hxg3 {[%clk 0:02:32.4]} 14... Nc5 {[%clk 0:02:55]} 15. exf7+
{[%clk 0:02:30.1]} 15... Kxf7 {[%clk 0:02:55.9]} 16. Nf3 {[%clk 0:02:00.9]}
16... Rd8 {[%clk 0:02:44.9]} 17. Be2 {[%clk 0:01:51.8]} 17... g6 {[%clk
0:02:30.6]} 18. Ng5+ {[%clk 0:01:40.7]} 18... Kf6 {[%clk 0:02:07.5]} 19. Nf3
{[%clk 0:01:21.1]} 19... e5 {[%clk 0:01:38.3]} 20. O-O {[%clk 0:01:18.7]} 20...
Bh6 {[%clk 0:01:37.7]} 21. Kh2 {[%clk 0:01:07.6]} 21... b4 {[%clk 0:01:30.8]}
22. Nd1 {[%clk 0:00:58.1]} 22... e4 {[%clk 0:01:28.4]} 23. Nd2+ {[%clk
0:00:53.1]} 23... Ke7 {[%clk 0:01:26.4]} 24. Nc4 {[%clk 0:00:53]} 24... Bg7
{[%clk 0:01:06.6]} 25. Nde3 {[%clk 0:00:52.1]} 25... Na4 {[%clk 0:01:04.3]} 26.
Rab1 {[%clk 0:00:46.3]} 26... h5 {[%clk 0:01:03.1]} 27. a3 {[%clk 0:00:44.5]}
27... bxa3 {[%clk 0:00:49.2]} 28. bxa3 {[%clk 0:00:44.1]} 28... Ba8 {[%clk
0:00:48.8]} 29. Rfe1 {[%clk 0:00:29.4]} 29... Nc3 {[%clk 0:00:47.6]} 30. Rb6
{[%clk 0:00:28.6]} 30... h4 {[%clk 0:00:42.6]} 31. Rxg6 {[%clk 0:00:26.9]} 31...
hxg3+ {[%clk 0:00:40.7]} 32. Kxg3 {[%clk 0:00:27.8]} 32... Bf6 {[%clk
0:00:38.8]} 33. Bg4 {[%clk 0:00:24.7]} 33... Bh4+ {[%clk 0:00:29.5]} 0-1

[Event "*** Titled Tuesday Blitz"]
[Site "Chess.com"]
[Date "2020.05.05"]
[Round "2"]
[White "kpio91"]
[Black "FedaMaster"]
[Result "0-1"]
[WhiteElo "2756"]
[BlackElo "2536"]
[TimeControl "180+1"]
[EndTime "10:17:52 PDT"]
[Termination "FedaMaster won by resignation"]

1. d4 {[%clk 0:03:00.9]} 1... Nf6 {[%clk 0:02:59.6]} 2. c4 {[%clk 0:03:00.7]}
2... g6 {[%clk 0:02:59.9]} 3. Nf3 {[%clk 0:02:59.6]} 3... Bg7 {[%clk 0:02:59.6]}
4. g3 {[%clk 0:02:59.8]} 4... O-O {[%clk 0:02:59.5]} 5. Bg2 {[%clk 0:03:00.2]}
5... d5 {[%clk 0:03:00.4]} 6. cxd5 {[%clk 0:02:51.6]} 6... Nxd5 {[%clk
0:03:01.3]} 7. O-O {[%clk 0:02:52.1]} 7... Nb6 {[%clk 0:03:02.2]} 8. Nc3 {[%clk
0:02:48.5]} 8... Nc6 {[%clk 0:03:02.6]} 9. e3 {[%clk 0:02:32.3]} 9... e5 {[%clk
0:03:02.8]} 10. d5 {[%clk 0:02:31.9]} 10... e4 {[%clk 0:03:02.3]} 11. dxc6
{[%clk 0:02:26.4]} 11... Qxd1 {[%clk 0:03:03.2]} 12. Rxd1 {[%clk 0:02:17.2]}
12... exf3 {[%clk 0:03:03.6]} 13. Bxf3 {[%clk 0:02:17.3]} 13... bxc6 {[%clk
0:03:04.2]} 14. Bd2 {[%clk 0:02:03.7]} 14... Nc4 {[%clk 0:03:00.3]} 15. Rab1
{[%clk 0:01:59.8]} 15... Bf5 {[%clk 0:01:53.7]} 16. e4 {[%clk 0:01:56.5]} 16...
Nxd2 {[%clk 0:01:53.5]} 17. Rxd2 {[%clk 0:01:55.4]} 17... Be6 {[%clk 0:01:35.1]}
18. Rc2 {[%clk 0:01:53.5]} 18... Bxc3 {[%clk 0:01:26.1]} 19. Rxc3 {[%clk
0:01:33.3]} 19... Bxa2 {[%clk 0:01:21.4]} 20. Ra1 {[%clk 0:01:32.9]} 20... Be6
{[%clk 0:01:21.7]} 21. Rxc6 {[%clk 0:01:21.4]} 21... Rab8 {[%clk 0:01:01.1]} 22.
Rxa7 {[%clk 0:01:15.9]} 22... Rxb2 {[%clk 0:00:53.2]} 23. Raxc7 {[%clk
0:01:03.2]} 23... Ra8 {[%clk 0:00:52.6]} 24. Rc2 {[%clk 0:00:51.2]} 24... Bh3
{[%clk 0:00:38.4]} 25. Bd1 {[%clk 0:00:18.1]} 25... Ra1 {[%clk 0:00:17]} 26. Rc1
{[%clk 0:00:17.3]} 26... Rbb1 {[%clk 0:00:17.6]} 0-1

[Event "*** Titled Tuesday Blitz"]
[Site "Chess.com"]
[Date "2020.05.05"]
[Round "2"]
[White "Firegrizzly"]
[Black "crazy_but_lazy"]
[Result "1-0"]
[WhiteElo "2647"]
[BlackElo "2380"]
[TimeControl "180+1"]
[EndTime "10:17:53 PDT"]
[Termination "Firegrizzly won by resignation"]

1. d4 {[%clk 0:03:00.9]} 1... Nf6 {[%clk 0:02:58.7]} 2. Nf3 {[%clk 0:03:01.8]}
2... e6 {[%clk 0:02:58.7]} 3. Bg5 {[%clk 0:03:01.5]} 3... c5 {[%clk 0:02:52.4]}
4. c3 {[%clk 0:02:59]} 4... Nc6 {[%clk 0:02:48.9]} 5. e3 {[%clk 0:02:57.6]} 5...
h6 {[%clk 0:02:46.3]} 6. Bh4 {[%clk 0:02:56.5]} 6... d5 {[%clk 0:02:45.2]} 7.
Nbd2 {[%clk 0:02:55.5]} 7... Be7 {[%clk 0:02:38.7]} 8. Bd3 {[%clk 0:02:55]} 8...
b6 {[%clk 0:02:24.5]} 9. Qe2 {[%clk 0:02:52.7]} 9... Bb7 {[%clk 0:02:23.9]} 10.
O-O {[%clk 0:02:51]} 10... Rc8 {[%clk 0:01:56.1]} 11. Rad1 {[%clk 0:02:49.9]}
11... O-O {[%clk 0:01:37.2]} 12. dxc5 {[%clk 0:02:47.2]} 12... bxc5 {[%clk
0:01:35]} 13. e4 {[%clk 0:02:46.9]} 13... Re8 {[%clk 0:01:24.8]} 14. Rfe1 {[%clk
0:02:39]} 14... Qb6 {[%clk 0:01:21.4]} 15. Bxf6 {[%clk 0:02:23]} 15... Bxf6
{[%clk 0:01:10]} 16. exd5 {[%clk 0:02:22.8]} 16... Na5 {[%clk 0:01:05.4]} 17.
dxe6 {[%clk 0:02:20.2]} 17... Rxe6 {[%clk 0:01:06.2]} 18. Qf1 {[%clk 0:02:19]}
18... Qxb2 {[%clk 0:00:40]} 19. Rxe6 {[%clk 0:02:11.8]} 19... fxe6 {[%clk
0:00:40.9]} 20. Ne4 {[%clk 0:02:06.3]} 20... Bxe4 {[%clk 0:00:34]} 21. Bxe4
{[%clk 0:02:05.4]} 21... Qxc3 {[%clk 0:00:34.3]} 22. Qa6 {[%clk 0:02:05]} 22...
Re8 {[%clk 0:00:20.2]} 23. Bg6 {[%clk 0:02:04.3]} 23... Rf8 {[%clk 0:00:15]} 24.
Qxe6+ {[%clk 0:02:02.6]} 24... Kh8 {[%clk 0:00:15.6]} 25. Qd7 {[%clk 0:01:56.2]}
25... Nc4 {[%clk 0:00:12.3]} 26. Qxa7 {[%clk 0:01:53.4]} 26... Bd4 {[%clk
0:00:09.7]} 27. Qe7 {[%clk 0:01:48.7]} 27... Rg8 {[%clk 0:00:08]} 28. Bf7 {[%clk
0:01:46.5]} 28... Ra8 {[%clk 0:00:06.7]} 29. Re1 {[%clk 0:01:42.6]} 29... Ne5
{[%clk 0:00:05.1]} 30. Rxe5 {[%clk 0:01:35.2]} 30... Bxe5 {[%clk 0:00:04.6]} 31.
Qxe5 {[%clk 0:01:35]} 31... Qxe5 {[%clk 0:00:03.5]} 32. Nxe5 {[%clk 0:01:35]}
32... g5 {[%clk 0:00:03.4]} 33. g3 {[%clk 0:01:33.6]} 33... Kg7 {[%clk
0:00:03.6]} 34. f4 {[%clk 0:01:33.1]} 34... gxf4 {[%clk 0:00:03.4]} 35. gxf4
{[%clk 0:01:32.6]} 35... Kf6 {[%clk 0:00:04.3]} 36. Bb3 {[%clk 0:01:30.9]} 36...
Rc8 {[%clk 0:00:03.9]} 37. Kf2 {[%clk 0:01:29.6]} 37... Kf5 {[%clk 0:00:04.3]}
38. Ke3 {[%clk 0:01:29.2]} 38... Kf6 {[%clk 0:00:03.9]} 39. Ke4 {[%clk
0:01:27.8]} 39... Rd8 {[%clk 0:00:04.4]} 40. Bd5 {[%clk 0:01:25.1]} 40... Rb8
{[%clk 0:00:04.1]} 41. Nd3 {[%clk 0:01:24.6]} 41... Rb1 {[%clk 0:00:03.5]} 42.
Nxc5 {[%clk 0:01:22.6]} 42... Rh1 {[%clk 0:00:04]} 43. a4 {[%clk 0:01:21.4]}
43... Rxh2 {[%clk 0:00:04.3]} 44. a5 {[%clk 0:01:21.4]} 44... Re2+ {[%clk
0:00:04.9]} 45. Kd3 {[%clk 0:01:20.7]} 45... Re1 {[%clk 0:00:05.4]} 46. a6
{[%clk 0:01:20.2]} 46... Ra1 {[%clk 0:00:05.7]} 47. Bb3 {[%clk 0:01:17.6]} 47...
Rxa6 {[%clk 0:00:04]} 48. Nxa6 {[%clk 0:01:16.8]} 48... Kf5 {[%clk 0:00:04.9]}
49. Ke3 {[%clk 0:01:16.4]} 49... h5 {[%clk 0:00:05.8]} 1-0

[Event "*** Titled Tuesday Blitz"]
[Site "Chess.com"]
[Date "2020.05.05"]
[Round "2"]
[White "InitiatingASC"]
[Black "DanielMieles1985"]
[Result "0-1"]
[WhiteElo "2322"]
[BlackElo "2659"]
[TimeControl "180+1"]
[EndTime "10:17:53 PDT"]
[Termination "DanielMieles1985 won by checkmate"]

1. Nf3 {[%clk 0:03:00.9]} 1... Nf6 {[%clk 0:02:59.1]} 2. g3 {[%clk 0:03:00.8]}
2... g6 {[%clk 0:02:53.6]} 3. Bg2 {[%clk 0:03:01.2]} 3... Bg7 {[%clk 0:02:54.5]}
4. O-O {[%clk 0:03:01.6]} 4... O-O {[%clk 0:02:50.3]} 5. c4 {[%clk 0:03:02.2]}
5... c6 {[%clk 0:02:47.4]} 6. d3 {[%clk 0:03:00.6]} 6... d6 {[%clk 0:02:44.4]}
7. Nbd2 {[%clk 0:02:58.5]} 7... Qa5 {[%clk 0:02:42.8]} 8. a3 {[%clk 0:02:54.8]}
8... Qh5 {[%clk 0:02:40.7]} 9. Re1 {[%clk 0:02:51.2]} 9... Bh3 {[%clk
0:02:38.5]} 10. Bh1 {[%clk 0:02:51.2]} 10... Nbd7 {[%clk 0:02:25.2]} 11. Rb1
{[%clk 0:02:50.7]} 11... Ng4 {[%clk 0:02:25.3]} 12. b4 {[%clk 0:02:45.9]} 12...
f5 {[%clk 0:02:21.5]} 13. Bb2 {[%clk 0:02:45]} 13... e5 {[%clk 0:02:18.3]} 14.
b5 {[%clk 0:02:37.3]} 14... Rae8 {[%clk 0:01:59.7]} 15. bxc6 {[%clk 0:02:19.3]}
15... bxc6 {[%clk 0:01:58.8]} 16. Ba1 {[%clk 0:02:08.7]} 16... e4 {[%clk
0:01:49.1]} 17. Bxg7 {[%clk 0:02:07.4]} 17... Kxg7 {[%clk 0:01:44.7]} 18. Nd4
{[%clk 0:01:58.6]} 18... e3 {[%clk 0:01:31.4]} 19. fxe3 {[%clk 0:01:50.9]} 19...
Bg2 {[%clk 0:01:30.8]} 20. h4 {[%clk 0:00:59]} 20... Bxh1 {[%clk 0:01:25.3]} 21.
Rb7 {[%clk 0:00:58.3]} 21... Rf7 {[%clk 0:01:15.8]} 22. Qa4 {[%clk 0:00:49.2]}
22... Nxe3 {[%clk 0:00:45.2]} 23. Kxh1 {[%clk 0:00:40.2]} 23... Qg4 {[%clk
0:00:45]} 24. Kh2 {[%clk 0:00:19.1]} 24... Qxd4 {[%clk 0:00:43.4]} 25. Qxc6
{[%clk 0:00:18.9]} 25... Ng4+ {[%clk 0:00:42.4]} 26. Kh3 {[%clk 0:00:16.5]}
26... Qf2 {[%clk 0:00:37.9]} 27. Nf3 {[%clk 0:00:14.7]} 27... Rxe2 {[%clk
0:00:34.1]} 28. Rxe2 {[%clk 0:00:13.5]} 28... Qxe2 {[%clk 0:00:33.9]} 29. Rxd7
{[%clk 0:00:10.4]} 29... Qf1# {[%clk 0:00:33.6]} 0-1

[Event "*** Titled Tuesday Blitz"]
[Site "Chess.com"]
[Date "2020.05.05"]
[Round "2"]
[White "Barbus89"]
[Black "K_A_S_T_O_R"]
[Result "0-1"]
[WhiteElo "2335"]
[BlackElo "2778"]
[TimeControl "180+1"]
[EndTime "10:17:54 PDT"]
[Termination "K_A_S_T_O_R won on time"]

1. d4 {[%clk 0:03:00.9]} 1... Nf6 {[%clk 0:02:58.9]} 2. Nf3 {[%clk 0:03:01]}
2... e6 {[%clk 0:02:58.3]} 3. g3 {[%clk 0:03:01.2]} 3... b6 {[%clk 0:02:57.8]}
4. Bg2 {[%clk 0:03:01]} 4... Bb7 {[%clk 0:02:58.3]} 5. O-O {[%clk 0:03:01.6]}
5... c5 {[%clk 0:02:58.8]} 6. c4 {[%clk 0:03:00.4]} 6... cxd4 {[%clk 0:02:58.1]}
7. Qxd4 {[%clk 0:02:59.2]} 7... d6 {[%clk 0:02:56.9]} 8. Nc3 {[%clk 0:02:58.6]}
8... a6 {[%clk 0:02:55.6]} 9. Rd1 {[%clk 0:02:54.3]} 9... Nbd7 {[%clk
0:02:55.4]} 10. b3 {[%clk 0:02:45.1]} 10... Be7 {[%clk 0:02:53.9]} 11. Ba3
{[%clk 0:02:45]} 11... Nc5 {[%clk 0:02:53.5]} 12. b4 {[%clk 0:02:45.4]} 12...
Ncd7 {[%clk 0:02:53.3]} 13. Na4 {[%clk 0:02:23.2]} 13... Qc7 {[%clk 0:02:49.4]}
14. Rac1 {[%clk 0:02:22.1]} 14... Rc8 {[%clk 0:02:48.5]} 15. b5 {[%clk 0:02:12]}
15... Nc5 {[%clk 0:02:27.9]} 16. Nxc5 {[%clk 0:02:03.9]} 16... bxc5 {[%clk
0:02:26]} 17. Qd3 {[%clk 0:01:43.2]} 17... O-O {[%clk 0:02:04.2]} 18. Bb2 {[%clk
0:01:39.8]} 18... Be4 {[%clk 0:01:43.7]} 19. Qc3 {[%clk 0:01:35]} 19... axb5
{[%clk 0:01:41]} 20. cxb5 {[%clk 0:01:29.9]} 20... Ra8 {[%clk 0:01:39]} 21. Ra1
{[%clk 0:01:16.6]} 21... Ra4 {[%clk 0:01:33.4]} 22. Qb3 {[%clk 0:01:08.7]} 22...
Rfa8 {[%clk 0:01:31.4]} 23. a3 {[%clk 0:00:48.4]} 23... Qb7 {[%clk 0:01:21.9]}
24. Rac1 {[%clk 0:00:34.2]} 24... Bd5 {[%clk 0:01:15]} 25. Qd3 {[%clk
0:00:25.1]} 25... c4 {[%clk 0:01:09.4]} 26. Qc2 {[%clk 0:00:16.1]} 26... Qxb5
{[%clk 0:01:01.8]} 27. Ng5 {[%clk 0:00:16]} 27... Bxg2 {[%clk 0:00:51.1]} 28.
Bxf6 {[%clk 0:00:15]} 28... Bxf6 {[%clk 0:00:50.9]} 29. Qxh7+ {[%clk 0:00:13.4]}
29... Kf8 {[%clk 0:00:51]} 30. Rb1 {[%clk 0:00:04.4]} 30... Qc6 {[%clk
0:00:45.8]} 31. Rxd6 {[%clk 0:00:03.9]} 31... Qxd6 {[%clk 0:00:39.9]} 32. Rb7
{[%clk 0:00:04.1]} 32... Bxb7 {[%clk 0:00:38.5]} 0-1